Cogmind - Beta 15 @@@ ROGUE MODE // 2025.07.30 @ 09:00:38 Player: beans Result: Destroyed by L-31 Rogue with Katana Performance ------------- Evolutions (1) 500 Regions Visited (4) 800 Robots Destroyed (49) 245 Value Destroyed (923) 923 Prototype IDs (6) 120 Alien Tech Used (0) 0 Bonus (0) 0 TOTAL SCORE: 2588 Bonus ------- None Cogmind --------- Core Integrity 0/400 Matter 677/700 Energy 280/280 System Corruption 5% Temperature Cool (0) Movement Core (300) Ox5 Location -9/Recycling Parts ------- > --- POWER (1) -------- Cooled Ion Engine > --- PROPULSION (2) --- (None) > --- UTILITY (3) ------ High-capacity Matter Pod High-capacity Matter Pod > --- WEAPON (3) ------- EM Pulse Gun > --- INVENTORY (5) ---- VTOL Module Peak State ------------ > --- POWER ------------ Cooled Ion Engine > --- PROPULSION ------- Hover Unit Hover Unit > --- UTILITY ---------- High-capacity Matter Pod High-capacity Matter Pod High-capacity Matter Pod > --- WEAPON ----------- Improved EM Shotgun Improved Medium Laser Advanced Beam Cannon > --- INVENTORY -------- Hover Unit VTOL Module EM Pulse Gun Heavy Assault Rifle [Rating: 17] Favorites ----------- Power Cooled Ion Engine Engine Cooled Ion Engine Propulsion Hover Unit Treads Light Treads Hover Unit Hover Unit Utility High-capacity Matter Pod Storage High-capacity Matter Pod Weapon Improved EM Shotgun Energy Gun Improved EM Shotgun Energy Cannon Advanced Beam Cannon Ballistic Gun Assault Rifle Launcher Grenade Launcher Build | -11 -10 -9 -9 -9 ------- Run | Yrd Mat Mat Sto Rec Slots Evolved 2 | . . 2 . . Power . | . . . . . Propulsion . | . . . . . Utility 1 | . . 1 . . Weapon 1 | . . 1 . . Parts Attached 23 | 4 3 3 12 1 Power 2 | . . . 2 . Engine 2 | . . . 2 . Core . | . . . . . Reactor . | . . . . . Propulsion 6 | 2 . . 3 1 Treads 2 | 2 . . . . Leg . | . . . . . Wheel . | . . . . . Hover 4 | . . . 3 1 Flight . | . . . . . Utility 4 | . 2 . 2 . Device . | . . . . . Storage 4 | . 2 . 2 . Processor . | . . . . . Hackware . | . . . . . Protection . | . . . . . Artifact . | . . . . . Weapon 11 | 2 1 3 5 . Energy Gun 6 | 1 . 1 4 . Energy Cannon 1 | . . 1 . . Ballistic Gun 3 | 1 . 1 1 . Ballistic Cannon . | . . . . . Launcher 1 | . 1 . . . Special Weapon . | . . . . . Impact Weapon . | . . . . . Slashing Weapon . | . . . . . Piercing Weapon . | . . . . . Special Melee Weapon . | . . . . . Unidentified Prototypes 4 | . . 1 3 . Parts Lost 15 | . 1 5 2 7 Power . | . . . . . Propulsion 6 | . . 2 1 3 Utility 2 | . . 1 . 1 Weapon 7 | . 1 2 1 3 Highest Loss Streak 7 | . 1 5 2 7 To Critical Strikes . | . . . . . Average Backups 3 | . 3 3 4 4 Power . | . . . . . Propulsion 1 | . . . 1 1 Utility . | . 2 1 . . Weapon 1 | . . 2 1 1 Tool/Special . | . . . . . Unused Backups 4 | . . . 3 1 Power . | . . . . . Propulsion 3 | . . . 2 1 Utility . | . . . . . Weapon 1 | . . . 1 . Tool/Special . | . . . . . Average Slot Usage (%) 72 | . 54 44 64 92 Engine 6 | . . . 4 11 Treads 6 | . 28 12 . . Hover 12 | . . . 12 21 Storage 20 | . 1 17 21 27 Energy Gun 17 | . 12 2 19 21 Energy Cannon 6 | . . 4 6 10 Launcher 2 | . 11 5 . . Peak Build Rating 17 | 3 5 7 16 17 Average Rating 10 | 1 3 4 10 16 On Entrance 5 | . 3 5 4 16 Naked Turns . | . . . . . Heaviest Build 30 | 4 11 13 26 30 Greatest Support 40 | 40 40 40 12 12 Greatest Overweight (x) 7 | 1 . 4 6 7 Average Overweight (x) 1 | . . . 2 2 Largest Inventory Capacity 5 | 5 5 5 5 5 Average Capacity 5 | 5 5 5 5 5 Most Carried 5 | 2 5 4 5 5 Average Carried 3 | . 3 3 4 4 Final Capacity 5 | 5 5 5 5 5 Final Carried 5 | . 3 4 5 1 Class Distribution -------------------- 52% | Gunner 47% | Mutant Dominant Class ---------------- Mutant | -10/Materials Mutant | -9/Materials Mutant | -9/Storage Gunner | -9/Recycling Resources | -11 -10 -9 -9 -9 ----------- Run | Yrd Mat Mat Sto Rec Matter Collected 1167 | 158 597 196 206 10 Remotely . | . . . . . Salvage Created 1700 | 95 718 295 279 313 Parts 115 | 2 51 25 18 19 Haulers Intercepted 1 | . 1 . . . Recyclers Shooed 4 | . 2 . 2 . Parts Field Recycled . | . . . . . Retrieved Matter . | . . . . . Parts Self-Destructed . | . . . . . Prevented . | . . . . . Kills | -11 -10 -9 -9 -9 ------- Run | Yrd Mat Mat Sto Rec Combat Hostiles Destroyed 19 | . 6 6 4 3 Guns 8 | . 3 1 3 1 Cannons 5 | . . 3 . 2 AOE 5 | . 2 2 1 . Classes Destroyed 9 | 1 5 1 2 . Worker 5 | . 2 2 1 . Builder 11 | . 5 4 1 1 Hauler 1 | . 1 . . . Recycler 7 | 1 3 . 1 2 Mechanic 1 | . . . 1 . Watcher 5 | . 3 . 2 . Swarmer 3 | . . . 3 . Grunt 10 | . 6 4 . . Sentry 6 | . . 2 1 3 Best Kill Streak 8 | 1 6 7 8 2 Combat Bots Only 4 | . 2 2 4 2 Max Kills in Single Turn 2 | 1 2 2 2 1 Gunslinging . | . . . . . Exploded 1 | . 1 1 1 . Melee . | . . . . . Uniques/NPCs Destroyed . | . . . . . Combat | -11 -10 -9 -9 -9 -------- Run | Yrd Mat Mat Sto Rec Hostile Shots Fired 173 | . 30 37 35 71 Missed 54 | . 17 11 10 16 Hits 119 | . 13 26 25 55 Melee 9 | . . . . 9 Projectile 110 | . 13 26 25 46 Critical Strikes 6 | . . . . 6 Damage Taken 1834 | . 260 420 288 866 Core 490 | . 73 26 73 318 Absorbed by Shields . | . . . . . Core Remaining (%) 85 | 100 70 . . . Volleys Fired 141 | 2 62 42 18 17 Largest 3 | 2 2 2 3 2 Hottest 158 | 60 70 70 158 124 Shots Fired 176 | 4 63 44 33 32 Gun 116 | 4 56 9 29 18 Cannon 42 | . . 24 4 14 Launcher 18 | . 7 11 . . Special . | . . . . . Kinetic 3 | 2 . . . 1 Thermal 56 | . . 24 4 28 Explosive 18 | . 7 11 . . Electromagnetic 99 | 2 56 9 29 3 Robot Hit Streak 8 | 3 6 8 7 6 Robot Miss Streak 4 | . 4 2 4 1 Penetration Max . | . . . . . Secondary Targets . | . . . . . Shots Hit Robots 111 | 3 36 27 24 21 Core Hits 67 | 2 26 18 14 7 Critical Kills . | . . . . . Critical Parts Destroyed . | . . . . . Critical Strikes 4 | . 2 . . 2 Burn 2 | . . . . 2 Corrupt 2 | . 2 . . . Melee Attacks . | . . . . . Impact . | . . . . . Slashing . | . . . . . Piercing . | . . . . . Sneak Attacks . | . . . . . Combat Hostiles . | . . . . . Follow-up Attacks . | . . . . . Damage Inflicted 2779 | 38 916 812 633 380 Guns 1123 | 38 451 84 354 196 Cannons 515 | . . 331 . 184 Explosions 1141 | . 465 397 279 . Melee . | . . . . . Ramming . | . . . . . Kinetic 26 | 26 . . . . Thermal 993 | . 26 331 279 357 Explosive 836 | . 439 397 . . Electromagnetic 924 | 12 451 84 354 23 Impact . | . . . . . Slashing . | . . . . . Piercing . | . . . . . Highest Corruption 5 | . . . . 5 Average Corruption 4 | . . . . 4 Corruption Purged . | . . . . . Corruption Blocked . | . . . . . Effects 2 | . . . . 2 Message Errors 1 | . . . . 1 Heat Flow Errors 1 | . . . . 1 Overload Shots . | . . . . . Overflow Damage 63 | . 53 2 . 8 Projectiles 10 | . . 2 . 8 Explosions 53 | . 53 . . . Melee . | . . . . . Knockbacks . | . . . . . Impact . | . . . . . Kinetic . | . . . . . Secondary . | . . . . . Self-Inflicted Damage 201 | . 93 78 30 . Shots 9 | . 5 3 1 . Rammed . | . . . . . Targets Rammed . | . . . . . Kicked . | . . . . . Crushed . | . . . . . Highest Temperature 321 | . 7 186 249 321 Average Temperature 79 | . 3 59 89 97 Received Heat Transfer 291 | . 96 135 51 9 Effects 1 | . . . . 1 Shutdowns 1 | . . . . 1 Siege Activations . | . . . . . Martial Activations . | . . . . . Shielding Activations . | . . . . . Robots Disrupted . | . . . . . Combat Hostiles . | . . . . . Robots Corrupted 1 | . 1 . . . Combat Hostiles 1 | . 1 . . . Parts Fried 2 | . 1 . 1 . Impact Corruptions . | . . . . . Robots Melted . | . . . . . Combat Hostiles . | . . . . . Parts Melted 1 | . . . . 1 Heat Transferred 1793 | . 50 592 300 851 Parts Sabotaged . | . . . . . Parts Stolen . | . . . . . Parts Stripped . | . . . . . Power Chain Reactions 5 | . 1 . 4 . Alert | -11 -10 -9 -9 -9 ------- Run | Yrd Mat Mat Sto Rec Maximum Alert Level . | . . . . . Low Security (%) 100 | 100 100 100 100 100 Level 1 . | . . . . . Level 2 . | . . . . . Level 3 . | . . . . . Level 4 . | . . . . . Level 5 . | . . . . . High Security . | . . . . . Max Security . | . . . . . Peak Influence 155 | 5 120 155 138 61 Initial 61 | . . 43 61 31 Average 30 | . 38 95 46 6 Influence Increases 895 | 5 290 252 228 120 Destroy 0b10 Robot/C 380 | . 120 120 80 60 Destroy 0b10 Robot/NC 150 | 5 70 30 30 15 Destroy Leader 112 | . 38 40 34 . Successful Hack 5 | . . . 5 . Disable Machine 90 | . 30 . 30 30 Destroy Structure 113 | . 32 62 19 . Lose Combat Pursuer 45 | . . . 30 15 Influence Decreases 880 | 5 186 211 292 186 Entered New Map 195 | . . 61 84 50 Time Decay 605 | 5 176 100 188 136 Lost Part 80 | . 10 50 20 . Squads Dispatched 3 | . 1 2 . . Investigation . | . . . . . Extermination . | . . . . . Reinforcement 3 | . 1 2 . . Assault . | . . . . . Garrison . | . . . . . Intercept . | . . . . . Searches Triggered . | . . . . . Construction Impeded 2 | . . 2 . . Haulers Reinforced . | . . . . . Active Scanning Responses . | . . . . . Cargo Convoy Interrupts . | . . . . . Stealth | -11 -10 -9 -9 -9 --------- Run | Yrd Mat Mat Sto Rec Distress Signals 2 | . 1 . 1 . Communications Jammed . | . . . . . Distress Signals . | . . . . . Times Spotted 43 | . 10 7 19 7 Peak Tracking Total 8 | . 3 4 8 4 Tactical Retreats 3 | . . . 2 1 Traps | -11 -10 -9 -9 -9 ------- Run | Yrd Mat Mat Sto Rec Traps Triggered . | . . . . . Indirectly . | . . . . . Trap Hack Attempts . | . . . . . Triggered . | . . . . . Disarmed . | . . . . . Reprogrammed . | . . . . . Reused . | . . . . . Traps Extracted . | . . . . . Installed . | . . . . . Triggered . | . . . . . Machines | -11 -10 -9 -9 -9 ---------- Run | Yrd Mat Mat Sto Rec Machines Disabled 6 | . 2 . 2 2 Max in Single Turn 1 | . 1 . 1 1 Machines Repaired . | . . . . . Machines Dismantled . | . . . . . Machines Sabotaged . | . . . . . Overloaded Fab Kills . | . . . . . Hacking | -11 -10 -9 -9 -9 --------- Run | Yrd Mat Mat Sto Rec Machines Accessed 2 | . . . 1 1 Terminals 2 | . . . 1 1 Fabricators . | . . . . . Repair Stations . | . . . . . Recycling Units . | . . . . . Scanalyzers . | . . . . . Garrison Access . | . . . . . Total Hacks 5 | . . . 3 2 Successful 3 | . . . 2 1 Failed 2 | . . . 1 1 Catastrophic . | . . . . . Database Lockouts . | . . . . . Manual . | . . . . . Terminals 5 | . . . 3 2 Fabricators . | . . . . . Repair Stations . | . . . . . Recycling Units . | . . . . . Scanalyzers . | . . . . . Garrison Access . | . . . . . Terminal Hacks 3 | . . . 2 1 Record 2 | . . . 2 . Prototype ID Bank 1 | . . . . 1 Fabricator Hacks . | . . . . . Repair Station Hacks . | . . . . . Recycling Unit Hacks . | . . . . . Scanalyzer . | . . . . . Garrison Access Hacks . | . . . . . Unauthorized Hacks . | . . . . . Terminals . | . . . . . Fabricators . | . . . . . Repair Stations . | . . . . . Recycling Units . | . . . . . Scanalyzers . | . . . . . Garrison Access . | . . . . . Data Cores Recovered . | . . . . . Used . | . . . . . Hacking Detections . | . . . . . Full Trace Events . | . . . . . Feedback Events . | . . . . . Feedback Blocked . | . . . . . Robot Schematics Acquired . | . . . . . Robots Built . | . . . . . Authchips . | . . . . . Time . | . . . . . Total Robot Build Rating . | . . . . . Part Schematics Acquired . | . . . . . Parts Built . | . . . . . Authchips . | . . . . . Time . | . . . . . Total Part Build Rating . | . . . . . Parts Repaired . | . . . . . Time . | . . . . . Parts Recycled . | . . . . . Recycled Matter . | . . . . . Retrieved Matter . | . . . . . Retrieved Components . | . . . . . Parts Scanalyzed . | . . . . . Part Schematics Acquired . | . . . . . Parts Damaged . | . . . . . Bothacking | -11 -10 -9 -9 -9 ------------ Run | Yrd Mat Mat Sto Rec Used RIF Installer . | . . . . . Robots Hacked . | . . . . . Non-combat . | . . . . . Combat . | . . . . . Robot Hacks Applied . | . . . . . Relay Couplers Released . | . . . . . Fabnet Peak Effective % . | . . . . . Robots Rewired . | . . . . . Allies Hacked . | . . . . . Hacks Repelled . | . . . . . Allies | -11 -10 -9 -9 -9 -------- Run | Yrd Mat Mat Sto Rec Total Allies . | . . . . . Largest Group . | . . . . . Highest-Rated Group . | . . . . . Highest-Rated Ally . | . . . . . Total Orders . | . . . . . Ally Attacks . | . . . . . Total Damage . | . . . . . Kills . | . . . . . Allies Corrupted . | . . . . . Allies Melted . | . . . . . Intel | -11 -10 -9 -9 -9 ------- Run | Yrd Mat Mat Sto Rec Active Infowar (turns) . | . . . . . Robot Analysis Total . | . . . . . Derelict Logs Recovered . | . . . . . Drone Launches . | . . . . . Drone Recoveries . | . . . . . Exploration | -11 -10 -9 -9 -9 ------------- Run | Yrd Mat Mat Sto Rec Turns Passed 2347 | 84 435 207 622 999 Spaces Moved 1156 | 76 180 72 314 514 Core 174 | 62 . 21 83 8 Treads 245 | 14 180 51 . . Legs . | . . . . . Wheels . | . . . . . Hover 737 | . . . 231 506 Flight . | . . . . . Fastest Speed 50 | 50 160 150 116 176 Average Speed 165 | 92 160 158 166 178 Slowest Speed 400 | 160 160 250 350 400 Overloaded Moves . | . . . . . Propulsion Burnouts . | . . . . . Robots Hopped . | . . . . . Potential Cave-ins . | . . . . . Cave-ins Triggered . | . . . . . Exploration Rate (%) 35 | 5 42 11 38 82 Regions Visited 4 Branch Regions 2 Pre-discovered Areas . | . . . . . Known Exits Taken . | . . . . . Unknown Exits Taken 4 | 1 1 1 1 . Scrap Searched . | . . . . . Spaces Dug 21 | . 2 19 . . Terrain Destroyed 122 | . 30 73 19 . Melee . | . . . . . Projectile 3 | . . 3 . . AOE 119 | . 30 70 19 . Terrain Rammed . | . . . . . Walls Destroyed . | . . . . . Machines Disabled . | . . . . . Actions | -11 -10 -9 -9 -9 --------- Run | Yrd Mat Mat Sto Rec Total 1417 | 86 264 122 384 561 Wait 59 | . 14 . 19 26 Move 1152 | 75 179 71 313 514 Hop . | . . . . . Pick Up 24 | 4 6 3 11 . Fast Attach 4 | . . . 4 . Attach 23 | 4 3 4 8 4 Detach 5 | . . 2 3 . Swap 2 | . . . 2 . Drop 7 | 1 . . 6 . Fire 141 | 2 62 42 18 17 Melee . | . . . . . Ram . | . . . . . Kick . | . . . . . Crush . | . . . . . Escape Stasis . | . . . . . Rewire . | . . . . . Trap . | . . . . . Miscellaneous . | . . . . . Route ------- -11/Scrapyard -10/Materials -9/Materials -9/Storage -9/Recycling History --------- Turn | Location | Event 3 | -11/Scrapyard | Discovered new exit (range 15) 85 | -11/Scrapyard | Entered Materials 302 | -10/Materials | Build established: Mutant 467 | -10/Materials | Discovered new exit (range 11) 520 | -10/Materials | Entered another Materials area 520 | -9/Materials | Evolved 2 slots: Utility x1, Weapon x1 616 | -9/Materials | Discovered new exit (range 11) 677 | -9/Materials | Lost 5 parts (2n1u2w) 727 | -9/Materials | Entered Storage 741 | -9/Storage | Met 01-MTF 1331 | -9/Storage | Discovered new exit (range 3) 1349 | -9/Storage | Entered Recycling 1349 | -9/Recycling | Accompanied by 1 ally (01-MTF) 1350 | -9/Recycling | Met a Zionite searching for Scraptown 1492 | -9/Recycling | Build established: Gunner 2115 | -9/Recycling | Scanned before Scraplab entrance 2311 | -9/Recycling | Core integrity fell below 50% 2328 | -9/Recycling | Core integrity fell below 20% 2348 | -9/Recycling | Destroyed by L-31 Rogue with Katana Last Messages --------------- Imp. EM Shotgun destroyed. S-10 Pest springs to life. Slug penetrates Wall. Hover Unit destroyed. System corrupted: Heat flow error (+282). Slug penetrates Wall. Adv. Beam Cannon destroyed. Slug penetrates Wall. Wall collapses. Imp. Medium Laser destroyed. Penetrated by Slug. Hover Unit destroyed. Hcp. Matter Pod destroyed. Processing Tank disabled. Penetrated by Slug. Slug penetrates Wall. Hvy. Assault Rifle severed. P FQEC0F6#FI8U3ATRWHFO|Y X<6F